[Event "Betsys MČR v online bleskovém šachu 2021"]
[Site "Chess.com"]
[Date "2021.04.17"]
[Round "10"]
[White "mendryxchess"]
[Black "JindrichT_CZE"]
[Result "1/2-1/2"]
[WhiteElo "1804"]
[BlackElo "2054"]
[TimeControl "180+1"]
[EndTime "10:41:58 PDT"]
[Termination "Remíza opakováním pozice"]

1. e4 {[%clk 0:03:00.9]} 1... e5 {[%clk 0:02:59.3]} 2. Nf3 {[%clk 0:03:01]} 2...
Nc6 {[%clk 0:02:58.7]} 3. Bc4 {[%clk 0:03:01.5]} 3... Bc5 {[%clk 0:02:58.2]} 4.
O-O {[%clk 0:02:59]} 4... Nf6 {[%clk 0:02:57.6]} 5. Nc3 {[%clk 0:02:58.9]} 5...
O-O {[%clk 0:02:55.2]} 6. d3 {[%clk 0:02:59.2]} 6... h6 {[%clk 0:02:48.5]} 7.
Be3 {[%clk 0:02:58.4]} 7... Bb6 {[%clk 0:02:41.2]} 8. d4 {[%clk 0:02:55.4]} 8...
exd4 {[%clk 0:02:39.3]} 9. Nxd4 {[%clk 0:02:56.3]} 9... Nxd4 {[%clk 0:02:39.1]}
10. Bxd4 {[%clk 0:02:56.5]} 10... Bxd4 {[%clk 0:02:38.9]} 11. Qxd4 {[%clk
0:02:57.4]} 11... d6 {[%clk 0:02:39]} 12. f4 {[%clk 0:02:54.5]} 12... Re8 {[%clk
0:02:36.4]} 13. Rae1 {[%clk 0:02:50.6]} 13... Be6 {[%clk 0:02:18.3]} 14. Bb3
{[%clk 0:02:46]} 14... Bxb3 {[%clk 0:01:56.6]} 15. axb3 {[%clk 0:02:46.9]} 15...
Qd7 {[%clk 0:01:55.9]} 16. Rf3 {[%clk 0:02:27.6]} 16... Qc6 {[%clk 0:01:55.2]}
17. Rg3 {[%clk 0:02:21.1]} 17... Qb6 {[%clk 0:01:52.6]} 18. Qxb6 {[%clk
0:02:14.8]} 18... axb6 {[%clk 0:01:52.5]} 19. e5 {[%clk 0:02:12.9]} 19... dxe5
{[%clk 0:01:49.9]} 20. fxe5 {[%clk 0:02:13.8]} 20... Nd7 {[%clk 0:01:49.6]} 21.
Nd5 {[%clk 0:02:06.8]} 21... Rac8 {[%clk 0:01:45.3]} 22. Rf1 {[%clk 0:01:48.9]}
22... Re6 {[%clk 0:01:26.8]} 23. Nf6+ {[%clk 0:01:40.1]} 23... Nxf6 {[%clk
0:01:24.1]} 24. exf6 {[%clk 0:01:41]} 24... g6 {[%clk 0:01:21.3]} 25. Rd3 {[%clk
0:01:38.2]} 25... Kf8 {[%clk 0:01:13.3]} 26. Rh3 {[%clk 0:01:32]} 26... Ke8
{[%clk 0:01:02]} 27. Rxh6 {[%clk 0:01:28]} 27... Kd7 {[%clk 0:01:02.1]} 28. Rh7
{[%clk 0:01:26.5]} 28... Rf8 {[%clk 0:01:01.7]} 29. Rh4 {[%clk 0:01:17.6]} 29...
Re2 {[%clk 0:01:00.2]} 30. Rc4 {[%clk 0:01:11.2]} 30... c5 {[%clk 0:00:56.7]}
31. Rf2 {[%clk 0:01:06.9]} 31... Rxf2 {[%clk 0:00:55]} 32. Kxf2 {[%clk
0:01:07.8]} 32... Ke6 {[%clk 0:00:54.9]} 33. Rf4 {[%clk 0:01:06.7]} 33... Rd8
{[%clk 0:00:54.4]} 34. Ke3 {[%clk 0:01:06.2]} 34... Rd1 {[%clk 0:00:53.4]} 35.
Ke2 {[%clk 0:01:02.4]} 35... Rb1 {[%clk 0:00:50.5]} 36. g4 {[%clk 0:00:56.9]}
36... Rxb2 {[%clk 0:00:49.1]} 37. Kd3 {[%clk 0:00:57.3]} 37... Rb1 {[%clk
0:00:49]} 38. h4 {[%clk 0:00:55.8]} 38... Rd1+ {[%clk 0:00:47.5]} 39. Ke2 {[%clk
0:00:55.8]} 39... Rh1 {[%clk 0:00:45.6]} 40. g5 {[%clk 0:00:54.4]} 40... Ke5
{[%clk 0:00:45.4]} 41. Rc4 {[%clk 0:00:48.7]} 41... Kd5 {[%clk 0:00:36.7]} 42.
Rf4 {[%clk 0:00:44]} 42... Rh2+ {[%clk 0:00:33.8]} 43. Kd3 {[%clk 0:00:43.8]}
43... b5 {[%clk 0:00:33.5]} 44. c4+ {[%clk 0:00:42.4]} 44... bxc4+ {[%clk
0:00:32.9]} 45. bxc4+ {[%clk 0:00:43.3]} 45... Kc6 {[%clk 0:00:32.8]} 46. Re4
{[%clk 0:00:38.4]} 46... Rh3+ {[%clk 0:00:30.3]} 47. Kc2 {[%clk 0:00:38.6]}
47... b5 {[%clk 0:00:29.9]} 48. cxb5+ {[%clk 0:00:38.3]} 48... Kxb5 {[%clk
0:00:29.6]} 49. Re7 {[%clk 0:00:38.8]} 49... Rxh4 {[%clk 0:00:29]} 50. Rxf7
{[%clk 0:00:39]} 50... Rg4 {[%clk 0:00:28.3]} 51. Rb7+ {[%clk 0:00:33.3]} 51...
Kc6 {[%clk 0:00:25.9]} 52. f7 {[%clk 0:00:28.9]} 52... Rf4 {[%clk 0:00:25.5]}
53. Re7 {[%clk 0:00:29.2]} 53... Kd6 {[%clk 0:00:22.2]} 54. Ra7 {[%clk
0:00:29.1]} 54... Ke6 {[%clk 0:00:19.5]} 55. Ra5 {[%clk 0:00:27.6]} 55... Kd5
{[%clk 0:00:18.2]} 56. Ra7 {[%clk 0:00:24.8]} 56... Ke6 {[%clk 0:00:18]} 57. Ra5
{[%clk 0:00:24.7]} 57... Rxf7 {[%clk 0:00:17.8]} 58. Rxc5 {[%clk 0:00:24.4]}
58... Rf5 {[%clk 0:00:17.9]} 59. Rc6+ {[%clk 0:00:23.2]} 59... Kf7 {[%clk
0:00:17.8]} 60. Rc7+ {[%clk 0:00:23.7]} 60... Kg8 {[%clk 0:00:17.8]} 61. Rc8+
{[%clk 0:00:23.6]} 61... Kf7 {[%clk 0:00:17.5]} 62. Rc7+ {[%clk 0:00:23.6]}
62... Kg8 {[%clk 0:00:17.7]} 63. Rc8+ {[%clk 0:00:23.8]} 63... Rf8 {[%clk
0:00:17.6]} 64. Rxf8+ {[%clk 0:00:21.6]} 64... Kxf8 {[%clk 0:00:17.7]} 65. Kd3
{[%clk 0:00:22.2]} 65... Ke7 {[%clk 0:00:17.9]} 66. Ke3 {[%clk 0:00:22.7]} 66...
Ke6 {[%clk 0:00:17.5]} 67. Ke4 {[%clk 0:00:23]} 67... Kd6 {[%clk 0:00:17.3]} 68.
Kd4 {[%clk 0:00:23.3]} 68... Ke6 {[%clk 0:00:17.6]} 69. Ke4 {[%clk 0:00:23.7]}
69... Kd6 {[%clk 0:00:17.9]} 70. Kd4 {[%clk 0:00:24]} 70... Ke6 {[%clk
0:00:18.2]} 71. Ke4 {[%clk 0:00:24.4]} 1/2-1/2

[Event "Betsys MČR v online bleskovém šachu 2021"]
[Site "Chess.com"]
[Date "2021.04.17"]
[Round "10"]
[White "Maldaj"]
[Black "karimaster100"]
[Result "0-1"]
[WhiteElo "2396"]
[BlackElo "2291"]
[TimeControl "180+1"]
[EndTime "10:42:01 PDT"]
[Termination "Uživatel karimaster100 zvítězil matem"]

1. e4 {[%clk 0:03:00.9]} 1... c5 {[%clk 0:03:00.3]} 2. Nf3 {[%clk 0:03:00.6]}
2... d6 {[%clk 0:03:00.9]} 3. d4 {[%clk 0:03:00.9]} 3... cxd4 {[%clk 0:03:01.4]}
4. Nxd4 {[%clk 0:03:01.8]} 4... Nf6 {[%clk 0:03:01.6]} 5. Nc3 {[%clk 0:03:02.1]}
5... a6 {[%clk 0:03:02.2]} 6. Bc4 {[%clk 0:03:02.3]} 6... e6 {[%clk 0:03:01.3]}
7. Bb3 {[%clk 0:03:02.5]} 7... Be7 {[%clk 0:03:01]} 8. g4 {[%clk 0:03:02.4]}
8... O-O {[%clk 0:02:41.8]} 9. g5 {[%clk 0:03:02]} 9... Nfd7 {[%clk 0:02:41]}
10. Rg1 {[%clk 0:03:00.7]} 10... Nc5 {[%clk 0:02:39.8]} 11. Be3 {[%clk
0:02:59.1]} 11... b5 {[%clk 0:02:37.9]} 12. Qh5 {[%clk 0:02:58.1]} 12... g6
{[%clk 0:02:36.5]} 13. Qh6 {[%clk 0:02:53]} 13... Re8 {[%clk 0:02:32.8]} 14.
O-O-O {[%clk 0:02:45.4]} 14... Bf8 {[%clk 0:02:32.2]} 15. Qh4 {[%clk 0:02:44.7]}
15... Nxb3+ {[%clk 0:02:30.5]} 16. axb3 {[%clk 0:02:44.1]} 16... b4 {[%clk
0:02:30.2]} 17. Nce2 {[%clk 0:02:41.2]} 17... Nd7 {[%clk 0:02:17.3]} 18. f4
{[%clk 0:02:38.8]} 18... Bg7 {[%clk 0:02:08.9]} 19. f5 {[%clk 0:02:37.8]} 19...
exf5 {[%clk 0:02:07.2]} 20. Bf4 {[%clk 0:02:31.2]} 20... Ne5 {[%clk 0:02:02]}
21. exf5 {[%clk 0:02:28.3]} 21... Qc7 {[%clk 0:01:39.5]} 22. f6 {[%clk
0:02:24.6]} 22... Bf8 {[%clk 0:01:38.1]} 23. Bd2 {[%clk 0:01:44.4]} 23... a5
{[%clk 0:01:34.9]} 24. Nf4 {[%clk 0:01:44.2]} 24... Bb7 {[%clk 0:01:18.3]} 25.
Rg3 {[%clk 0:01:40.8]} 25... a4 {[%clk 0:01:10.6]} 26. Rh3 {[%clk 0:01:40.6]}
26... h5 {[%clk 0:01:09.9]} 27. Nxh5 {[%clk 0:01:36.2]} 27... axb3 {[%clk
0:01:08.8]} 28. Nxb3 {[%clk 0:01:32.7]} 28... Rec8 {[%clk 0:00:59.6]} 29. Bc3
{[%clk 0:01:10.1]} 29... bxc3 {[%clk 0:00:43.8]} 30. bxc3 {[%clk 0:01:09.2]}
30... Nf3 {[%clk 0:00:37.1]} 31. Qb4 {[%clk 0:00:37.3]} 31... Qxc3 {[%clk
0:00:22.5]} 32. Qxc3 {[%clk 0:00:37]} 32... Rxc3 {[%clk 0:00:22.2]} 33. Nf4
{[%clk 0:00:36.2]} 33... Rac8 {[%clk 0:00:17.2]} 34. Na1 {[%clk 0:00:30.6]}
34... Nxg5 {[%clk 0:00:16.8]} 35. Rxc3 {[%clk 0:00:29.7]} 35... Rxc3 {[%clk
0:00:16.6]} 36. Kb2 {[%clk 0:00:30]} 36... Rc8 {[%clk 0:00:14.9]} 37. Nb3 {[%clk
0:00:29.2]} 37... Ne4 {[%clk 0:00:15.2]} 38. h4 {[%clk 0:00:26.5]} 38... Nxf6
{[%clk 0:00:15.5]} 39. h5 {[%clk 0:00:26.7]} 39... Nxh5 {[%clk 0:00:14]} 40.
Nxh5 {[%clk 0:00:26.2]} 40... gxh5 {[%clk 0:00:14.1]} 41. Rg1+ {[%clk
0:00:25.7]} 41... Bg7+ {[%clk 0:00:13.5]} 42. Ka3 {[%clk 0:00:26.1]} 42... h4
{[%clk 0:00:12.3]} 43. Rg4 {[%clk 0:00:24.6]} 43... h3 {[%clk 0:00:12.2]} 44.
Rh4 {[%clk 0:00:25.5]} 44... Bg2 {[%clk 0:00:12.1]} 45. Nd2 {[%clk 0:00:23.7]}
45... Rxc2 {[%clk 0:00:11.6]} 46. Nf3 {[%clk 0:00:21.5]} 46... Rc3+ {[%clk
0:00:11.3]} 47. Kb4 {[%clk 0:00:20]} 47... Rxf3 {[%clk 0:00:11.8]} 48. Rg4
{[%clk 0:00:19.6]} 48... Rf6 {[%clk 0:00:11.5]} 49. Kc4 {[%clk 0:00:18.3]} 49...
Rg6 {[%clk 0:00:12]} 50. Rh4 {[%clk 0:00:19.2]} 50... Bf6 {[%clk 0:00:11.6]} 51.
Rh5 {[%clk 0:00:18.8]} 51... Kg7 {[%clk 0:00:10.4]} 52. Kd3 {[%clk 0:00:17.6]}
52... Rg3+ {[%clk 0:00:10.3]} 53. Ke2 {[%clk 0:00:17.4]} 53... Kg6 {[%clk
0:00:10.8]} 54. Rxh3 {[%clk 0:00:16.7]} 54... Bxh3 {[%clk 0:00:10.1]} 55. Kf2
{[%clk 0:00:17.6]} 55... Ra3 {[%clk 0:00:10.4]} 56. Kg1 {[%clk 0:00:17.5]} 56...
d5 {[%clk 0:00:10.9]} 57. Kh2 {[%clk 0:00:17.7]} 57... d4 {[%clk 0:00:11.5]} 58.
Kg1 {[%clk 0:00:17.7]} 58... Bf5 {[%clk 0:00:11.9]} 59. Kh2 {[%clk 0:00:17.9]}
59... Ra2+ {[%clk 0:00:12.5]} 60. Kg3 {[%clk 0:00:18.1]} 60... d3 {[%clk
0:00:12.9]} 61. Kf4 {[%clk 0:00:18.2]} 61... d2 {[%clk 0:00:12.7]} 62. Kg3
{[%clk 0:00:18.9]} 62... Ra3+ {[%clk 0:00:10.2]} 63. Kf2 {[%clk 0:00:18.9]}
63... Rd3 {[%clk 0:00:10.6]} 64. Kg2 {[%clk 0:00:18.3]} 64... d1=Q {[%clk
0:00:10.4]} 65. Kh2 {[%clk 0:00:19.2]} 65... Rh3+ {[%clk 0:00:10.2]} 66. Kg2
{[%clk 0:00:19]} 66... Qf3+ {[%clk 0:00:09.9]} 67. Kg1 {[%clk 0:00:18.8]} 67...
Rh1# {[%clk 0:00:10.4]} 0-1

[Event "Betsys MČR v online bleskovém šachu 2021"]
[Site "Chess.com"]
[Date "2021.04.17"]
[Round "10"]
[White "121pepa"]
[Black "Jacques_se_mas"]
[Result "1/2-1/2"]
[WhiteElo "1448"]
[BlackElo "1737"]
[TimeControl "180+1"]
[EndTime "10:42:06 PDT"]
[Termination "Remíza dohodou"]

1. d4 {[%clk 0:03:00.9]} 1... b6 {[%clk 0:02:59.5]} 2. c4 {[%clk 0:02:53.9]}
2... Bb7 {[%clk 0:02:58.9]} 3. Nc3 {[%clk 0:02:52]} 3... e6 {[%clk 0:02:59.2]}
4. e3 {[%clk 0:02:51.3]} 4... Bb4 {[%clk 0:02:57.8]} 5. Nf3 {[%clk 0:02:48.5]}
5... f5 {[%clk 0:02:56.3]} 6. a3 {[%clk 0:02:47.1]} 6... Bxc3+ {[%clk
0:02:55.8]} 7. bxc3 {[%clk 0:02:46.2]} 7... Nf6 {[%clk 0:02:56.3]} 8. Be2 {[%clk
0:02:38.7]} 8... O-O {[%clk 0:02:55]} 9. O-O {[%clk 0:02:37.8]} 9... Qe8 {[%clk
0:02:53.4]} 10. Qc2 {[%clk 0:02:36.4]} 10... d6 {[%clk 0:02:44.1]} 11. Bd2
{[%clk 0:02:28]} 11... Ne4 {[%clk 0:02:43.8]} 12. Bc1 {[%clk 0:02:02.4]} 12...
Nd7 {[%clk 0:02:41.1]} 13. Nd2 {[%clk 0:02:00.8]} 13... Qg6 {[%clk 0:02:38.8]}
14. f3 {[%clk 0:01:30.6]} 14... Nxd2 {[%clk 0:02:32]} 15. Bxd2 {[%clk
0:01:29.8]} 15... Nf6 {[%clk 0:02:25.3]} 16. Bd3 {[%clk 0:01:23.8]} 16... Rf7
{[%clk 0:02:22.9]} 17. Rae1 {[%clk 0:01:15]} 17... Raf8 {[%clk 0:02:18.1]} 18.
e4 {[%clk 0:01:12.8]} 18... fxe4 {[%clk 0:02:17.9]} 19. fxe4 {[%clk 0:01:11.6]}
19... Nxe4 {[%clk 0:02:12.1]} 20. Rxf7 {[%clk 0:00:58.1]} 20... Qxf7 {[%clk
0:02:12.1]} 21. Rf1 {[%clk 0:00:54.7]} 21... Qg6 {[%clk 0:01:36.4]} 22. Rxf8+
{[%clk 0:00:42]} 22... Kxf8 {[%clk 0:01:37.3]} 23. Bf4 {[%clk 0:00:20.3]} 23...
Qf5 {[%clk 0:01:30.3]} 24. Bg3 {[%clk 0:00:19.4]} 24... h5 {[%clk 0:01:25.2]}
25. Bxe4 {[%clk 0:00:19.3]} 25... Bxe4 {[%clk 0:01:24.5]} 26. Qf2 {[%clk
0:00:19.1]} 26... Qxf2+ {[%clk 0:01:20.6]} 27. Kxf2 {[%clk 0:00:18.1]} 27... Bd3
{[%clk 0:01:20.5]} 28. c5 {[%clk 0:00:18]} 28... bxc5 {[%clk 0:01:13.7]} 29.
dxc5 {[%clk 0:00:18.5]} 29... dxc5 {[%clk 0:01:13.5]} 30. Bxc7 {[%clk
0:00:17.4]} 30... a6 {[%clk 0:01:12.8]} 31. Bd6+ {[%clk 0:00:17.5]} 31... Kf7
{[%clk 0:01:11.8]} 32. Bxc5 {[%clk 0:00:18.2]} 32... g6 {[%clk 0:01:09.6]} 33.
Ke3 {[%clk 0:00:18.8]} 33... Bc4 {[%clk 0:01:08.9]} 34. g3 {[%clk 0:00:19.5]}
34... Bd5 {[%clk 0:01:08.7]} 35. Bd6 {[%clk 0:00:19]} 35... Kf6 {[%clk
0:01:04.4]} 36. a4 {[%clk 0:00:17.5]} 36... Kf5 {[%clk 0:00:58.9]} 37. a5 {[%clk
0:00:16.9]} 37... Kg4 {[%clk 0:00:56.1]} 38. Kf2 {[%clk 0:00:14.1]} 38... Kh3
{[%clk 0:00:55.9]} 39. Kg1 {[%clk 0:00:13.6]} 39... g5 {[%clk 0:00:54.9]} 40.
Be7 {[%clk 0:00:12.4]} 40... Kg4 {[%clk 0:00:54.5]} 41. Kf2 {[%clk 0:00:11.7]}
41... Kf5 {[%clk 0:00:54.1]} 42. Ke3 {[%clk 0:00:10.2]} 42... g4 {[%clk
0:00:53.6]} 43. Bc5 {[%clk 0:00:08.3]} 43... Bc4 {[%clk 0:00:48.9]} 44. Bd4
{[%clk 0:00:08.8]} 44... e5 {[%clk 0:00:47.7]} 45. Bb6 {[%clk 0:00:09]} 45... e4
{[%clk 0:00:47.5]} 46. Bc7 {[%clk 0:00:09.6]} 46... Bd3 {[%clk 0:00:46.9]} 47.
Bf4 {[%clk 0:00:09.7]} 47... Ke6 {[%clk 0:00:46.4]} 48. Kd4 {[%clk 0:00:10.3]}
48... Kd7 {[%clk 0:00:44.3]} 49. c4 {[%clk 0:00:11]} 49... Kc6 {[%clk
0:00:42.8]} 50. c5 {[%clk 0:00:08.8]} 50... Kb5 {[%clk 0:00:41.6]} 51. Bc7
{[%clk 0:00:08.9]} 51... Bb1 {[%clk 0:00:39]} 52. Bb6 {[%clk 0:00:08.6]} 52...
Bc2 {[%clk 0:00:27.3]} 53. Ke3 {[%clk 0:00:08.4]} 53... Kc6 {[%clk 0:00:24.5]}
54. Kd4 {[%clk 0:00:08.4]} 54... Kd7 {[%clk 0:00:21.6]} 55. Kd5 {[%clk
0:00:03.9]} 55... e3 {[%clk 0:00:20]} 56. c6+ {[%clk 0:00:03.9]} 56... Kc8
{[%clk 0:00:17.9]} 57. Bxe3 {[%clk 0:00:04.6]} 57... Ba4 {[%clk 0:00:17.7]} 58.
Bf4 {[%clk 0:00:05.2]} 58... Bb5 {[%clk 0:00:17.7]} 59. Kc5 {[%clk 0:00:05.2]}
59... Bf1 {[%clk 0:00:16.5]} 60. c7 {[%clk 0:00:05.9]} 60... Bb5 {[%clk
0:00:14.1]} 61. Kd6 {[%clk 0:00:06.6]} 61... Bd7 {[%clk 0:00:12.4]} 62. Bg5
{[%clk 0:00:07.2]} 62... Bb5 {[%clk 0:00:12]} 63. Bh4 {[%clk 0:00:07.9]} 63...
Be2 {[%clk 0:00:08.6]} 64. Bg5 {[%clk 0:00:06.9]} 64... Bf1 {[%clk 0:00:08.6]}
65. Bh4 {[%clk 0:00:06.3]} 1/2-1/2

[Event "Betsys MČR v online bleskovém šachu 2021"]
[Site "Chess.com"]
[Date "2021.04.17"]
[Round "10"]
[White "xPsylocke"]
[Black "chessbeer17"]
[Result "0-1"]
[WhiteElo "2231"]
[BlackElo "2357"]
[TimeControl "180+1"]
[EndTime "10:42:13 PDT"]
[Termination "Uživatel chessbeer17 zvítězil po vzdání soupeře"]

1. e4 {[%clk 0:03:00.9]} 1... c6 {[%clk 0:03:00.3]} 2. d3 {[%clk 0:03:00]} 2...
d5 {[%clk 0:03:01.2]} 3. Nf3 {[%clk 0:02:57.6]} 3... Nf6 {[%clk 0:03:01.4]} 4.
Nc3 {[%clk 0:02:56]} 4... Bg4 {[%clk 0:03:01.5]} 5. h3 {[%clk 0:02:55.3]} 5...
Bh5 {[%clk 0:03:01.7]} 6. g4 {[%clk 0:02:54.3]} 6... Bg6 {[%clk 0:03:02]} 7. Qe2
{[%clk 0:02:54.4]} 7... e6 {[%clk 0:02:57]} 8. Bg2 {[%clk 0:02:54.2]} 8... Bb4
{[%clk 0:02:56.3]} 9. e5 {[%clk 0:02:25.5]} 9... d4 {[%clk 0:02:41.5]} 10. a3
{[%clk 0:01:56.8]} 10... dxc3 {[%clk 0:02:28]} 11. axb4 {[%clk 0:01:54.6]} 11...
cxb2 {[%clk 0:02:25.8]} 12. Bxb2 {[%clk 0:01:54.6]} 12... Nd5 {[%clk 0:02:26.1]}
13. Qd2 {[%clk 0:01:51.6]} 13... Qb6 {[%clk 0:02:22.2]} 14. c3 {[%clk
0:01:34.5]} 14... Nd7 {[%clk 0:02:16.3]} 15. O-O {[%clk 0:01:33.7]} 15... c5
{[%clk 0:02:08.5]} 16. bxc5 {[%clk 0:01:24.3]} 16... Nxc5 {[%clk 0:02:09.4]} 17.
Nd4 {[%clk 0:01:10.1]} 17... Bxd3 {[%clk 0:01:57.1]} 18. Rfd1 {[%clk 0:01:09.6]}
18... Bc4 {[%clk 0:01:53.9]} 19. Ba3 {[%clk 0:01:00.3]} 19... O-O {[%clk
0:01:27.9]} 20. Rab1 {[%clk 0:01:00.2]} 20... Qc7 {[%clk 0:01:25.8]} 21. Nb5
{[%clk 0:00:54.7]} 21... Bxb5 {[%clk 0:01:14.6]} 22. Rxb5 {[%clk 0:00:55.6]}
22... b6 {[%clk 0:01:07.7]} 23. c4 {[%clk 0:00:48.3]} 23... a6 {[%clk
0:00:31.3]} 24. cxd5 {[%clk 0:00:24.4]} 24... axb5 {[%clk 0:00:28.9]} 25. d6
{[%clk 0:00:24.5]} 25... Qd7 {[%clk 0:00:27.2]} 26. Bxa8 {[%clk 0:00:23.1]}
26... Rxa8 {[%clk 0:00:28.1]} 27. Bxc5 {[%clk 0:00:23.1]} 27... bxc5 {[%clk
0:00:28.1]} 28. Qc3 {[%clk 0:00:18.8]} 28... Rc8 {[%clk 0:00:28]} 29. Rb1 {[%clk
0:00:18.2]} 29... b4 {[%clk 0:00:25.8]} 30. Qc4 {[%clk 0:00:17.8]} 30... f6
{[%clk 0:00:21.6]} 31. f4 {[%clk 0:00:17.5]} 31... Kf7 {[%clk 0:00:21.1]} 32.
Rf1 {[%clk 0:00:13.9]} 32... Qc6 {[%clk 0:00:18.4]} 33. f5 {[%clk 0:00:11.4]}
33... Qd5 {[%clk 0:00:18.6]} 34. fxe6+ {[%clk 0:00:10.8]} 34... Qxe6 {[%clk
0:00:18.7]} 35. Qa6 {[%clk 0:00:06.9]} 35... Rd8 {[%clk 0:00:16.2]} 36. Qa7+
{[%clk 0:00:04.8]} 36... Rd7 {[%clk 0:00:16.6]} 37. Qxc5 {[%clk 0:00:05.2]}
37... b3 {[%clk 0:00:16.3]} 38. Qd4 {[%clk 0:00:04.1]} 38... Rb7 {[%clk
0:00:12.8]} 39. g5 {[%clk 0:00:04.1]} 39... f5 {[%clk 0:00:12.5]} 40. Qc3 {[%clk
0:00:03]} 40... g6 {[%clk 0:00:12]} 41. Rf2 {[%clk 0:00:02.7]} 41... Qd5 {[%clk
0:00:11.5]} 42. Rb2 {[%clk 0:00:02.8]} 42... Ke6 {[%clk 0:00:11.6]} 43. Kf2
{[%clk 0:00:03]} 43... Qb5 {[%clk 0:00:11.5]} 44. Qe3 {[%clk 0:00:02.9]} 44...
Qb6 {[%clk 0:00:11.5]} 45. Qxb6 {[%clk 0:00:02]} 45... Rxb6 {[%clk 0:00:12.4]}
46. Ke3 {[%clk 0:00:02.5]} 46... Kxe5 {[%clk 0:00:12.9]} 47. d7 {[%clk 0:00:03]}
47... Rd6 {[%clk 0:00:12]} 48. d8=Q {[%clk 0:00:03.5]} 48... Rxd8 {[%clk
0:00:12.1]} 49. Rxb3 {[%clk 0:00:04.4]} 49... Rd7 {[%clk 0:00:12.7]} 50. Rb5+
{[%clk 0:00:04.5]} 50... Ke6 {[%clk 0:00:13.6]} 51. Rb6+ {[%clk 0:00:04.9]}
51... Kf7 {[%clk 0:00:13.8]} 52. Rb8 {[%clk 0:00:05.2]} 52... Re7+ {[%clk
0:00:14.5]} 53. Kf4 {[%clk 0:00:05.6]} 53... Re4+ {[%clk 0:00:14.3]} 54. Kg3
{[%clk 0:00:06.5]} 54... Re7 {[%clk 0:00:14.2]} 55. Kg2 {[%clk 0:00:06.9]} 55...
Kg7 {[%clk 0:00:14.6]} 56. Kg3 {[%clk 0:00:07.4]} 56... h6 {[%clk 0:00:15.2]}
57. h4 {[%clk 0:00:08.1]} 57... hxg5 {[%clk 0:00:14.9]} 58. hxg5 {[%clk
0:00:09]} 58... Re4 {[%clk 0:00:15.4]} 59. Rb7+ {[%clk 0:00:09.4]} 59... Kf8
{[%clk 0:00:15.7]} 60. Rb8+ {[%clk 0:00:09.8]} 60... Kf7 {[%clk 0:00:16.2]} 61.
Rb7+ {[%clk 0:00:10.4]} 61... Ke8 {[%clk 0:00:16.8]} 62. Kf3 {[%clk 0:00:10.2]}
62... Rg4 {[%clk 0:00:16.6]} 63. Rb6 {[%clk 0:00:10.3]} 63... Rxg5 {[%clk
0:00:16.5]} 64. Kf4 {[%clk 0:00:11]} 64... Rg4+ {[%clk 0:00:17]} 65. Ke5 {[%clk
0:00:11.5]} 65... Kf7 {[%clk 0:00:17.1]} 66. Rb7+ {[%clk 0:00:11.5]} 66... Kg8
{[%clk 0:00:17.6]} 67. Kf6 {[%clk 0:00:11.9]} 67... Rg1 {[%clk 0:00:15.9]} 68.
Rb8+ {[%clk 0:00:10.3]} 68... Kh7 {[%clk 0:00:16.2]} 69. Rb7+ {[%clk 0:00:11.2]}
69... Kh6 {[%clk 0:00:16.6]} 70. Rg7 {[%clk 0:00:10.2]} 70... f4 {[%clk
0:00:16]} 71. Rg8 {[%clk 0:00:09.8]} 71... Kh5 {[%clk 0:00:15.3]} 72. Rh8+
{[%clk 0:00:09.7]} 72... Kg4 {[%clk 0:00:15.8]} 73. Kxg6 {[%clk 0:00:10.2]}
73... f3 {[%clk 0:00:16.3]} 74. Kf6 {[%clk 0:00:08.9]} 74... f2 {[%clk
0:00:15.8]} 0-1